[Event "Late-Titled-Tuesday-Blitz-May-07-2024"]
[Site "Chess.com"]
[Date "2024.05.07"]
[Round "6"]
[White "Temirlan_Baltabaev"]
[Black "Rodalquilar"]
[Result "0-1"]
[WhiteElo "2573"]
[BlackElo "2773"]
[TimeControl "180+1"]
[EndTime "15:07:20 PDT"]
[Termination "Rodalquilar won by resignation"]

1. d4 {[%clk 0:03:00.9]} 1... d5 {[%clk 0:03:00.2]} 2. Nf3 {[%clk 0:03:00.6]}
2... Nf6 {[%clk 0:03:00.4]} 3. c4 {[%clk 0:03:00.2]} 3... e6 {[%clk 0:03:00.4]}
4. g3 {[%clk 0:03:00.2]} 4... Be7 {[%clk 0:03:00.6]} 5. Bg2 {[%clk 0:03:00.4]}
5... O-O {[%clk 0:03:01.1]} 6. O-O {[%clk 0:03:00.5]} 6... dxc4 {[%clk
0:03:01.7]} 7. Ne5 {[%clk 0:03:00.3]} 7... Qd6 {[%clk 0:03:02.1]} 8. Nxc4 {[%clk
0:02:58.2]} 8... Qa6 {[%clk 0:03:01.9]} 9. b3 {[%clk 0:02:55]} 9... Rd8 {[%clk
0:03:00.2]} 10. Bb2 {[%clk 0:02:53.9]} 10... c5 {[%clk 0:03:00.3]} 11. e3 {[%clk
0:02:51.7]} 11... cxd4 {[%clk 0:02:58.8]} 12. exd4 {[%clk 0:02:49.7]} 12... Bd7
{[%clk 0:02:58.6]} 13. Nbd2 {[%clk 0:02:38.1]} 13... Bc6 {[%clk 0:02:57.2]} 14.
Nf3 {[%clk 0:02:37.3]} 14... Bd5 {[%clk 0:02:53.4]} 15. Qe2 {[%clk 0:02:33.7]}
15... Nc6 {[%clk 0:02:53.3]} 16. Rfd1 {[%clk 0:02:28.4]} 16... Rac8 {[%clk
0:02:50.9]} 17. Nfe5 {[%clk 0:01:56.2]} 17... Nb4 {[%clk 0:02:15.9]} 18. a3
{[%clk 0:01:48.6]} 18... Nc6 {[%clk 0:02:15.3]} 19. Bxd5 {[%clk 0:01:40.8]}
19... exd5 {[%clk 0:02:15]} 20. Nxc6 {[%clk 0:01:40.6]} 20... bxc6 {[%clk
0:01:59.3]} 21. Qxe7 {[%clk 0:01:37.8]} 21... dxc4 {[%clk 0:01:59.8]} 22. bxc4
{[%clk 0:01:37.5]} 22... Qxc4 {[%clk 0:01:59.9]} 23. Rac1 {[%clk 0:01:34.8]}
23... Qb3 {[%clk 0:01:42.1]} 24. Rd2 {[%clk 0:01:19]} 24... Re8 {[%clk
0:01:12.8]} 25. Qxa7 {[%clk 0:01:06.4]} 25... Ne4 {[%clk 0:00:37.3]} 26. Rdc2
{[%clk 0:01:03.8]} 26... Ng5 {[%clk 0:00:32.9]} 27. Qd7 {[%clk 0:00:48.2]} 27...
Nf3+ {[%clk 0:00:10.1]} 28. Kg2 {[%clk 0:00:46]} 28... Rcd8 {[%clk 0:00:10.6]}
29. Qxc6 {[%clk 0:00:41.9]} 29... Ne1+ {[%clk 0:00:10.8]} 30. Rxe1 {[%clk
0:00:40.7]} 30... Rxe1 {[%clk 0:00:11.7]} 31. Qc4 {[%clk 0:00:21.9]} 31... Qb7+
{[%clk 0:00:10.2]} 32. Qc6 {[%clk 0:00:20]} 32... Qe7 {[%clk 0:00:10.5]} 33. a4
{[%clk 0:00:16.4]} 33... Re6 {[%clk 0:00:05.7]} 34. Qf3 {[%clk 0:00:14.8]} 34...
Rf6 {[%clk 0:00:06]} 35. Qe3 {[%clk 0:00:12]} 35... Qd7 {[%clk 0:00:05.9]} 36.
f3 {[%clk 0:00:09.7]} 36... Qxa4 {[%clk 0:00:05.1]} 37. Re2 {[%clk 0:00:09.2]}
37... Re6 {[%clk 0:00:04.6]} 38. Qd3 {[%clk 0:00:09.5]} 38... Rxe2+ {[%clk
0:00:04.6]} 39. Qxe2 {[%clk 0:00:10]} 39... Rc8 {[%clk 0:00:04.8]} 40. Kh3
{[%clk 0:00:02.9]} 40... h6 {[%clk 0:00:05]} 41. Qe4 {[%clk 0:00:01.7]} 41...
Qb5 {[%clk 0:00:03.5]} 42. Ba3 {[%clk 0:00:01.4]} 42... Qf1+ {[%clk 0:00:03.5]}
43. Kg4 {[%clk 0:00:01.3]} 43... Qa6 {[%clk 0:00:04.4]} 44. Kh3 {[%clk
0:00:01.4]} 44... Qxa3 {[%clk 0:00:04.6]} 45. d5 {[%clk 0:00:01.7]} 45... Qd6
{[%clk 0:00:04.7]} 46. f4 {[%clk 0:00:01.8]} 46... Rd8 {[%clk 0:00:05.6]} 47.
Qd4 {[%clk 0:00:01.8]} 47... Qd7+ {[%clk 0:00:06.1]} 48. Kh4 {[%clk 0:00:01.2]}
48... Qxd5 {[%clk 0:00:07]} 49. Qe3 {[%clk 0:00:01.4]} 49... Qd7 {[%clk
0:00:07.3]} 50. g4 {[%clk 0:00:01.3]} 50... Re8 {[%clk 0:00:07.8]} 51. Qf3
{[%clk 0:00:01.2]} 51... Qe7+ {[%clk 0:00:08.7]} 52. Kg3 {[%clk 0:00:01.3]}
52... Qe1+ {[%clk 0:00:09]} 53. Kg2 {[%clk 0:00:01.5]} 53... Qe2+ {[%clk
0:00:09.5]} 54. Kg3 {[%clk 0:00:01.7]} 54... Qxf3+ {[%clk 0:00:09.7]} 55. Kxf3
{[%clk 0:00:02.6]} 55... Ra8 {[%clk 0:00:10.1]} 0-1

[Event "Late-Titled-Tuesday-Blitz-May-07-2024"]
[Site "Chess.com"]
[Date "2024.05.07"]
[Round "6"]
[White "DrVelja"]
[Black "MarkusRagger"]
[Result "0-1"]
[WhiteElo "2981"]
[BlackElo "2809"]
[TimeControl "180+1"]
[EndTime "15:07:28 PDT"]
[Termination "MarkusRagger won on time"]

1. e4 {[%clk 0:03:00.9]} 1... e5 {[%clk 0:02:57.4]} 2. Nf3 {[%clk 0:03:01.2]}
2... Nc6 {[%clk 0:02:57.3]} 3. Bb5 {[%clk 0:03:01.8]} 3... a6 {[%clk 0:02:57.1]}
4. Ba4 {[%clk 0:03:01.9]} 4... Bc5 {[%clk 0:02:55.9]} 5. O-O {[%clk 0:02:58.2]}
5... Nge7 {[%clk 0:02:55.2]} 6. c3 {[%clk 0:02:58.2]} 6... Ba7 {[%clk
0:02:54.9]} 7. d4 {[%clk 0:02:58]} 7... Ng6 {[%clk 0:02:54.4]} 8. Bxc6 {[%clk
0:02:53.9]} 8... dxc6 {[%clk 0:02:54.3]} 9. Nxe5 {[%clk 0:02:54.5]} 9... Nxe5
{[%clk 0:02:49.4]} 10. dxe5 {[%clk 0:02:55.4]} 10... Qe7 {[%clk 0:02:35.7]} 11.
Qf3 {[%clk 0:02:55.8]} 11... Qxe5 {[%clk 0:02:33.3]} 12. Bf4 {[%clk 0:02:55.7]}
12... Qe7 {[%clk 0:02:32.2]} 13. Qg3 {[%clk 0:02:56.2]} 13... f6 {[%clk
0:02:12.4]} 14. Bxc7 {[%clk 0:02:50.3]} 14... h5 {[%clk 0:02:12.2]} 15. h4
{[%clk 0:02:43.8]} 15... Be6 {[%clk 0:02:05.5]} 16. Nd2 {[%clk 0:02:37.8]} 16...
Kf7 {[%clk 0:01:58.4]} 17. Bd6 {[%clk 0:02:28.3]} 17... Qd7 {[%clk 0:01:39.8]}
18. e5 {[%clk 0:02:28.8]} 18... Rh6 {[%clk 0:01:25]} 19. Ne4 {[%clk 0:02:07.5]}
19... Rg6 {[%clk 0:01:24]} 20. Qd3 {[%clk 0:02:08]} 20... Bd5 {[%clk 0:01:16]}
21. Ng3 {[%clk 0:01:33.1]} 21... Qg4 {[%clk 0:01:11]} 22. Rfe1 {[%clk
0:01:19.7]} 22... Kg8 {[%clk 0:01:02.5]} 23. e6 {[%clk 0:01:15.3]} 23... Re8
{[%clk 0:00:56.6]} 24. e7 {[%clk 0:01:04.6]} 24... f5 {[%clk 0:00:55.7]} 25. c4
{[%clk 0:00:19.5]} 25... Bxc4 {[%clk 0:00:39.4]} 26. Qd2 {[%clk 0:00:19.9]}
26... Bd5 {[%clk 0:00:35.3]} 27. Bf4 {[%clk 0:00:20.4]} 27... Bc5 {[%clk
0:00:25.5]} 28. b4 {[%clk 0:00:18.1]} 28... Bxe7 {[%clk 0:00:16.5]} 29. Re5
{[%clk 0:00:18.6]} 29... Re6 {[%clk 0:00:15]} 30. Rae1 {[%clk 0:00:18.7]} 30...
Bf6 {[%clk 0:00:14.2]} 31. Rxe6 {[%clk 0:00:15.8]} 31... Rxe6 {[%clk 0:00:14.9]}
32. Rxe6 {[%clk 0:00:13.6]} 32... Bxe6 {[%clk 0:00:15.8]} 33. Qd6 {[%clk
0:00:12.3]} 33... Bd5 {[%clk 0:00:15.1]} 34. f3 {[%clk 0:00:11.3]} 34... Qg6
{[%clk 0:00:13.4]} 35. Be5 {[%clk 0:00:08.1]} 35... Kh7 {[%clk 0:00:13.3]} 36.
Bxf6 {[%clk 0:00:07.5]} 36... Qxf6 {[%clk 0:00:13.2]} 37. Qxf6 {[%clk
0:00:07.4]} 37... gxf6 {[%clk 0:00:13]} 38. Nxh5 {[%clk 0:00:08.1]} 38... Bxa2
{[%clk 0:00:12.7]} 39. Nxf6+ {[%clk 0:00:08.8]} 39... Kg6 {[%clk 0:00:12.4]} 40.
Nd7 {[%clk 0:00:09.5]} 40... Bc4 {[%clk 0:00:11.5]} 41. Kf2 {[%clk 0:00:04.5]}
41... Bb5 {[%clk 0:00:10.2]} 42. g4 {[%clk 0:00:03.7]} 42... fxg4 {[%clk
0:00:08.8]} 43. fxg4 {[%clk 0:00:04.6]} 43... Kf7 {[%clk 0:00:08.9]} 44. Kg3
{[%clk 0:00:04.7]} 44... Ke7 {[%clk 0:00:09.4]} 45. Nb6 {[%clk 0:00:05.4]} 45...
c5 {[%clk 0:00:09.1]} 46. bxc5 {[%clk 0:00:05.5]} 46... a5 {[%clk 0:00:09.7]}
47. Nd5+ {[%clk 0:00:04.7]} 47... Kf7 {[%clk 0:00:09.5]} 48. Nc3 {[%clk
0:00:05.1]} 48... Bc6 {[%clk 0:00:09.2]} 49. Kf4 {[%clk 0:00:04.6]} 49... a4
{[%clk 0:00:09.9]} 50. Nb1 {[%clk 0:00:05.3]} 50... Bd5 {[%clk 0:00:08.9]} 51.
Na3 {[%clk 0:00:05.7]} 51... Bb3 {[%clk 0:00:09.8]} 52. h5 {[%clk 0:00:05.9]}
52... Bd1 {[%clk 0:00:10.1]} 53. Kg5 {[%clk 0:00:04.2]} 53... Kg7 {[%clk
0:00:10.7]} 54. Kh4 {[%clk 0:00:04.7]} 54... Kf6 {[%clk 0:00:11]} 55. g5+ {[%clk
0:00:04.6]} 55... Kf5 {[%clk 0:00:11.4]} 56. g6 {[%clk 0:00:04.9]} 56... Kf6
{[%clk 0:00:11.6]} 57. Nc4 {[%clk 0:00:04.6]} 57... Bb3 {[%clk 0:00:10.9]} 58.
Ne3 {[%clk 0:00:02.1]} 58... a3 {[%clk 0:00:10.9]} 59. Ng4+ {[%clk 0:00:02.9]}
59... Ke7 {[%clk 0:00:09.4]} 0-1

[Event "Late-Titled-Tuesday-Blitz-May-07-2024"]
[Site "Chess.com"]
[Date "2024.05.07"]
[Round "6"]
[White "MathiasWomacka"]
[Black "GMRafpig"]
[Result "1/2-1/2"]
[WhiteElo "2549"]
[BlackElo "2729"]
[TimeControl "180+1"]
[EndTime "15:07:28 PDT"]
[Termination "Game drawn by repetition"]

1. e4 {[%clk 0:03:00.9]} 1... c5 {[%clk 0:02:58.8]} 2. Nf3 {[%clk 0:03:00.4]}
2... d6 {[%clk 0:02:59.3]} 3. d4 {[%clk 0:03:00.4]} 3... cxd4 {[%clk 0:02:59.8]}
4. Nxd4 {[%clk 0:03:00.8]} 4... Nf6 {[%clk 0:03:00.6]} 5. Nc3 {[%clk 0:03:00.8]}
5... a6 {[%clk 0:03:01.4]} 6. Be2 {[%clk 0:03:00.7]} 6... e5 {[%clk 0:03:00.9]}
7. Nb3 {[%clk 0:03:01]} 7... Be7 {[%clk 0:03:01.6]} 8. O-O {[%clk 0:03:00.6]}
8... O-O {[%clk 0:03:01.5]} 9. Kh1 {[%clk 0:03:00.4]} 9... Re8 {[%clk
0:03:01.1]} 10. Be3 {[%clk 0:02:55.5]} 10... Be6 {[%clk 0:03:00.4]} 11. f4
{[%clk 0:02:51.7]} 11... exf4 {[%clk 0:02:51.9]} 12. Bxf4 {[%clk 0:02:47.4]}
12... Nc6 {[%clk 0:02:47.9]} 13. Qe1 {[%clk 0:02:46.3]} 13... Nd7 {[%clk
0:02:35.6]} 14. Rd1 {[%clk 0:02:37.9]} 14... Nde5 {[%clk 0:02:26.4]} 15. Nd5
{[%clk 0:02:28.6]} 15... Rc8 {[%clk 0:02:10.4]} 16. Nxe7+ {[%clk 0:02:23.9]}
16... Qxe7 {[%clk 0:02:09.4]} 17. c3 {[%clk 0:02:10.5]} 17... Rcd8 {[%clk
0:01:57.8]} 18. Qg3 {[%clk 0:01:58.2]} 18... f6 {[%clk 0:01:55.1]} 19. Nd4
{[%clk 0:01:55]} 19... Nxd4 {[%clk 0:01:52.1]} 20. cxd4 {[%clk 0:01:53.5]} 20...
Ng6 {[%clk 0:01:52.3]} 21. Bh5 {[%clk 0:01:22.2]} 21... Bf7 {[%clk 0:01:50.9]}
22. Rfe1 {[%clk 0:01:16.7]} 22... Nxf4 {[%clk 0:01:46.2]} 23. Bxf7+ {[%clk
0:01:15.9]} 23... Qxf7 {[%clk 0:01:45.8]} 24. Qxf4 {[%clk 0:01:16.5]} 24... Qxa2
{[%clk 0:01:45.9]} 25. Rd2 {[%clk 0:01:11.6]} 25... Qe6 {[%clk 0:01:43.2]} 26.
h4 {[%clk 0:01:10.3]} 26... h5 {[%clk 0:01:31]} 27. Kh2 {[%clk 0:01:03]} 27...
Rd7 {[%clk 0:01:30.4]} 28. Re3 {[%clk 0:01:00.6]} 28... Rde7 {[%clk 0:01:14.2]}
29. Rde2 {[%clk 0:00:53.5]} 29... b5 {[%clk 0:01:02.3]} 30. Qf3 {[%clk
0:00:52.2]} 30... Qf7 {[%clk 0:01:01.5]} 31. Qf4 {[%clk 0:00:49.9]} 31... b4
{[%clk 0:01:00.2]} 32. Qxd6 {[%clk 0:00:46.9]} 32... a5 {[%clk 0:01:00.5]} 33.
Qc5 {[%clk 0:00:40.4]} 33... Qg6 {[%clk 0:00:59.3]} 34. Qxa5 {[%clk 0:00:38]}
34... Qg4 {[%clk 0:00:54.5]} 35. g3 {[%clk 0:00:32.8]} 35... f5 {[%clk
0:00:44.3]} 36. Qxb4 {[%clk 0:00:26.3]} 36... f4 {[%clk 0:00:43.4]} 37. gxf4
{[%clk 0:00:25]} 37... Qxh4+ {[%clk 0:00:41.7]} 38. Kg2 {[%clk 0:00:25.1]} 38...
Qg4+ {[%clk 0:00:41.5]} 39. Kf2 {[%clk 0:00:20.6]} 39... Qxf4+ {[%clk
0:00:41.9]} 40. Rf3 {[%clk 0:00:19.9]} 40... Qh4+ {[%clk 0:00:41.2]} 41. Kg2
{[%clk 0:00:18.8]} 41... Rxe4 {[%clk 0:00:37.8]} 42. Rxe4 {[%clk 0:00:18.6]}
42... Qxe4 {[%clk 0:00:38.2]} 43. Qd2 {[%clk 0:00:16.5]} 43... Qg4+ {[%clk
0:00:37.4]} 44. Kf2 {[%clk 0:00:16.8]} 44... Qh4+ {[%clk 0:00:37.4]} 45. Kg2
{[%clk 0:00:17.1]} 45... Re1 {[%clk 0:00:32.2]} 46. d5 {[%clk 0:00:14.5]} 46...
Qh1+ {[%clk 0:00:30.7]} 47. Kg3 {[%clk 0:00:14.3]} 47... Rg1+ {[%clk 0:00:27.2]}
48. Kf4 {[%clk 0:00:14.4]} 48... Qh4+ {[%clk 0:00:27]} 49. Ke3 {[%clk
0:00:14.3]} 49... Qg5+ {[%clk 0:00:25.4]} 50. Kd3 {[%clk 0:00:14.5]} 50... Qxd5+
{[%clk 0:00:25.1]} 51. Ke3 {[%clk 0:00:13.2]} 51... Qxd2+ {[%clk 0:00:18.7]} 52.
Kxd2 {[%clk 0:00:13.3]} 52... g5 {[%clk 0:00:19.1]} 53. b4 {[%clk 0:00:12.1]}
53... Kg7 {[%clk 0:00:18.9]} 54. Rb3 {[%clk 0:00:11.1]} 54... h4 {[%clk
0:00:16.5]} 55. b5 {[%clk 0:00:11.2]} 55... Rf1 {[%clk 0:00:16.7]} 56. b6 {[%clk
0:00:11.2]} 56... Rf8 {[%clk 0:00:17.1]} 57. b7 {[%clk 0:00:11.3]} 57... Rb8
{[%clk 0:00:17.9]} 58. Ke3 {[%clk 0:00:11.7]} 58... Kg6 {[%clk 0:00:17.3]} 59.
Kf3 {[%clk 0:00:11.9]} 59... Kh5 {[%clk 0:00:17.5]} 60. Rb5 {[%clk 0:00:11]}
60... Rf8+ {[%clk 0:00:16.6]} 61. Kg2 {[%clk 0:00:11]} 61... Rb8 {[%clk
0:00:17.3]} 62. Kf3 {[%clk 0:00:11.3]} 62... Rf8+ {[%clk 0:00:15.5]} 63. Kg2
{[%clk 0:00:11.3]} 63... Rb8 {[%clk 0:00:14.5]} 64. Kf3 {[%clk 0:00:11.3]}
1/2-1/2

[Event "Late-Titled-Tuesday-Blitz-May-07-2024"]
[Site "Chess.com"]
[Date "2024.05.07"]
[Round "6"]
[White "GothamChess"]
[Black "sergiochess83"]
[Result "0-1"]
[WhiteElo "2711"]
[BlackElo "2897"]
[TimeControl "180+1"]
[EndTime "15:07:33 PDT"]
[Termination "sergiochess83 won on time"]

1. e4 {[%clk 0:03:00.9]} 1... e6 {[%clk 0:02:53.7]} 2. d4 {[%clk 0:02:57.8]}
2... d5 {[%clk 0:02:52.8]} 3. exd5 {[%clk 0:02:58.7]} 3... exd5 {[%clk
0:02:52.3]} 4. h3 {[%clk 0:02:59.4]} 4... Bf5 {[%clk 0:02:49.7]} 5. Nf3 {[%clk
0:02:55.9]} 5... Bd6 {[%clk 0:02:48.2]} 6. c4 {[%clk 0:02:54.4]} 6... Nf6 {[%clk
0:02:44.6]} 7. Nc3 {[%clk 0:02:50.5]} 7... O-O {[%clk 0:02:43.9]} 8. cxd5 {[%clk
0:02:40]} 8... Nbd7 {[%clk 0:02:36.3]} 9. Be2 {[%clk 0:02:38]} 9... Nb6 {[%clk
0:02:29.9]} 10. O-O {[%clk 0:02:32.3]} 10... Nbxd5 {[%clk 0:01:59.5]} 11. Ne5
{[%clk 0:01:59.3]} 11... c6 {[%clk 0:01:46.8]} 12. Bg5 {[%clk 0:01:39.7]} 12...
Bxe5 {[%clk 0:01:24.7]} 13. dxe5 {[%clk 0:01:25.7]} 13... Nxc3 {[%clk
0:01:24.2]} 14. bxc3 {[%clk 0:01:18.6]} 14... Qxd1 {[%clk 0:01:23.6]} 15. Rfxd1
{[%clk 0:01:05.5]} 15... Ne4 {[%clk 0:01:24.5]} 16. Bd3 {[%clk 0:00:56.8]} 16...
Rfe8 {[%clk 0:01:10.6]} 17. Bf4 {[%clk 0:00:45.6]} 17... Rad8 {[%clk 0:01:01.3]}
18. Bxe4 {[%clk 0:00:36.9]} 18... Bxe4 {[%clk 0:01:01]} 19. c4 {[%clk
0:00:32.5]} 19... c5 {[%clk 0:00:53.2]} 20. Rd6 {[%clk 0:00:24]} 20... Rxd6
{[%clk 0:00:45.4]} 21. exd6 {[%clk 0:00:24.2]} 21... Bc6 {[%clk 0:00:46.2]} 22.
Be3 {[%clk 0:00:22.4]} 22... b6 {[%clk 0:00:43.4]} 23. a4 {[%clk 0:00:20.2]}
23... Rd8 {[%clk 0:00:22.4]} 24. Bf4 {[%clk 0:00:19.4]} 24... f6 {[%clk
0:00:14.6]} 25. a5 {[%clk 0:00:19.2]} 25... g5 {[%clk 0:00:14.6]} 26. Bg3 {[%clk
0:00:14.8]} 26... b5 {[%clk 0:00:10.9]} 27. cxb5 {[%clk 0:00:12]} 27... Bxb5
{[%clk 0:00:11.8]} 28. Rc1 {[%clk 0:00:11]} 28... c4 {[%clk 0:00:10.9]} 29. a6
{[%clk 0:00:08.8]} 29... Kf7 {[%clk 0:00:08.5]} 30. f3 {[%clk 0:00:06.9]} 30...
Rc8 {[%clk 0:00:04.3]} 31. Bf2 {[%clk 0:00:05.1]} 31... Ke6 {[%clk 0:00:04]} 32.
Bxa7 {[%clk 0:00:04.2]} 32... Bxa6 {[%clk 0:00:04.4]} 33. Bd4 {[%clk 0:00:04.2]}
33... Kxd6 {[%clk 0:00:01.8]} 34. Bxf6 {[%clk 0:00:04.2]} 34... h6 {[%clk
0:00:02.7]} 35. Bg7 {[%clk 0:00:04.5]} 35... Ke6 {[%clk 0:00:02.8]} 36. Bxh6
{[%clk 0:00:04.5]} 36... Kf5 {[%clk 0:00:03.7]} 37. h4 {[%clk 0:00:04.9]} 37...
gxh4 {[%clk 0:00:03.7]} 38. Kh2 {[%clk 0:00:05.1]} 38... c3 {[%clk 0:00:04.1]}
39. Bg7 {[%clk 0:00:03.1]} 39... c2 {[%clk 0:00:03.9]} 40. Kh3 {[%clk
0:00:02.1]} 40... Kg5 {[%clk 0:00:03.9]} 41. Bd4 {[%clk 0:00:02.1]} 41... Be2
{[%clk 0:00:03.9]} 42. Be3+ {[%clk 0:00:02.5]} 42... Kh5 {[%clk 0:00:04.3]} 43.
Re1 {[%clk 0:00:02.8]} 43... Bd1 {[%clk 0:00:04.5]} 44. Bc1 {[%clk 0:00:03.2]}
44... Rc5 {[%clk 0:00:04]} 45. f4 {[%clk 0:00:03.1]} 45... Rc3+ {[%clk
0:00:03.8]} 46. Re3 {[%clk 0:00:03]} 46... Rxe3+ {[%clk 0:00:03.5]} 47. Bxe3
{[%clk 0:00:03.2]} 47... Bg4+ {[%clk 0:00:04.4]} 48. Kh2 {[%clk 0:00:03.4]}
48... Bf5 {[%clk 0:00:05.3]} 49. Bc1 {[%clk 0:00:03.7]} 49... Kg4 {[%clk
0:00:05.8]} 50. Bd2 {[%clk 0:00:03.6]} 50... Be4 {[%clk 0:00:06.3]} 51. Bc1
{[%clk 0:00:03.9]} 51... Bf5 {[%clk 0:00:06.4]} 52. Bd2 {[%clk 0:00:04.4]} 52...
Kh5 {[%clk 0:00:06.7]} 53. Bc1 {[%clk 0:00:04.8]} 53... Kg6 {[%clk 0:00:07.3]}
54. Bd2 {[%clk 0:00:04.9]} 54... Kf6 {[%clk 0:00:07.8]} 55. g3 {[%clk
0:00:04.2]} 55... h3 {[%clk 0:00:07.7]} 56. Bc1 {[%clk 0:00:04.6]} 56... Bg4
{[%clk 0:00:07.7]} 57. Bd2 {[%clk 0:00:04.4]} 57... Kf5 {[%clk 0:00:08.4]} 58.
Bc1 {[%clk 0:00:04.1]} 58... Ke4 {[%clk 0:00:09.1]} 59. Bb2 {[%clk 0:00:03.4]}
59... Kf3 {[%clk 0:00:08.9]} 60. Bc1 {[%clk 0:00:03.9]} 60... Ke2 {[%clk
0:00:09.1]} 61. f5 {[%clk 0:00:02.5]} 61... Bxf5 {[%clk 0:00:09]} 62. Bf4 {[%clk
0:00:02]} 62... Kd1 {[%clk 0:00:08.8]} 63. Be3 {[%clk 0:00:01.2]} 63... c1=Q
{[%clk 0:00:08.7]} 0-1

[Event "Late-Titled-Tuesday-Blitz-May-07-2024"]
[Site "Chess.com"]
[Date "2024.05.07"]
[Round "6"]
[White "MKlose11"]
[Black "NajdorfPlayerc5"]
[Result "1-0"]
[WhiteElo "2668"]
[BlackElo "2429"]
[TimeControl "180+1"]
[EndTime "15:07:35 PDT"]
[Termination "MKlose11 won by checkmate"]

1. e4 {[%clk 0:01:45.1]} 1... c5 {[%clk 0:02:54.1]} 2. Nc3 {[%clk 0:01:45.1]}
2... a6 {[%clk 0:02:51.4]} 3. d3 {[%clk 0:01:46]} 3... b5 {[%clk 0:02:49.3]} 4.
g3 {[%clk 0:01:46.9]} 4... Bb7 {[%clk 0:02:49.3]} 5. Bg2 {[%clk 0:01:47.3]} 5...
e6 {[%clk 0:02:45.3]} 6. Nh3 {[%clk 0:01:47.4]} 6... Nc6 {[%clk 0:02:36.1]} 7.
O-O {[%clk 0:01:47]} 7... d6 {[%clk 0:02:20.3]} 8. f4 {[%clk 0:01:46.7]} 8...
Nf6 {[%clk 0:02:16.7]} 9. f5 {[%clk 0:01:45.2]} 9... e5 {[%clk 0:02:02.2]} 10.
g4 {[%clk 0:01:45.3]} 10... h6 {[%clk 0:01:56.7]} 11. Nf2 {[%clk 0:01:40.5]}
11... Be7 {[%clk 0:01:54.5]} 12. Be3 {[%clk 0:01:37]} 12... Qd7 {[%clk
0:01:48.8]} 13. Nd5 {[%clk 0:01:33.4]} 13... Nxd5 {[%clk 0:01:43.4]} 14. exd5
{[%clk 0:01:33.1]} 14... Nd8 {[%clk 0:01:30.9]} 15. c4 {[%clk 0:01:32.6]} 15...
b4 {[%clk 0:01:28.2]} 16. Ne4 {[%clk 0:01:28]} 16... f6 {[%clk 0:01:16.9]} 17.
h4 {[%clk 0:01:25.4]} 17... Nf7 {[%clk 0:01:15.1]} 18. Kf2 {[%clk 0:01:17.4]}
18... h5 {[%clk 0:01:08.3]} 19. Ke1 {[%clk 0:01:09]} 19... hxg4 {[%clk
0:01:07.4]} 20. Qxg4 {[%clk 0:01:09.9]} 20... Rg8 {[%clk 0:00:47.3]} 21. Qg6
{[%clk 0:01:05.6]} 21... Kf8 {[%clk 0:00:34.3]} 22. h5 {[%clk 0:01:04.3]} 22...
Nh8 {[%clk 0:00:32.8]} 23. Qh7 {[%clk 0:01:02.1]} 23... Bd8 {[%clk 0:00:27.2]}
24. h6 {[%clk 0:00:53.5]} 24... Qf7 {[%clk 0:00:19.2]} 25. hxg7+ {[%clk
0:00:51.6]} 25... Rxg7 {[%clk 0:00:07.1]} 26. Qxh8+ {[%clk 0:00:51.7]} 26... Rg8
{[%clk 0:00:07.2]} 27. Qh6+ {[%clk 0:00:48.5]} 27... Ke7 {[%clk 0:00:07.3]} 28.
Bf3 {[%clk 0:00:48.5]} 28... Ba5 {[%clk 0:00:03.5]} 29. Qh5 {[%clk 0:00:41]}
29... Qxh5 {[%clk 0:00:01.9]} 30. Bxh5 {[%clk 0:00:40.3]} 30... b3+ {[%clk
0:00:02.8]} 31. Kf2 {[%clk 0:00:37.4]} 31... bxa2 {[%clk 0:00:02.5]} 32. Bg6
{[%clk 0:00:34.3]} 32... Bb4 {[%clk 0:00:03.4]} 33. Rxa2 {[%clk 0:00:34.1]}
33... Rh8 {[%clk 0:00:03.3]} 34. Kg2 {[%clk 0:00:31.5]} 34... Rag8 {[%clk
0:00:03]} 35. Raa1 {[%clk 0:00:30.2]} 35... Bc8 {[%clk 0:00:03.2]} 36. Ng3
{[%clk 0:00:30.3]} 36... a5 {[%clk 0:00:02.9]} 37. Rh1 {[%clk 0:00:29.8]} 37...
Kf8 {[%clk 0:00:02.1]} 38. Rxh8 {[%clk 0:00:29.6]} 38... Rxh8 {[%clk 0:00:03]}
39. Rh1 {[%clk 0:00:28.7]} 39... Rxh1 {[%clk 0:00:02.4]} 40. Kxh1 {[%clk
0:00:28.6]} 40... a4 {[%clk 0:00:02.3]} 41. Kg2 {[%clk 0:00:28.6]} 41... a3
{[%clk 0:00:01.7]} 42. bxa3 {[%clk 0:00:27.9]} 42... Bxa3 {[%clk 0:00:02.6]} 43.
Ne4 {[%clk 0:00:28.1]} 43... Ke7 {[%clk 0:00:02.6]} 44. Bh6 {[%clk 0:00:27.6]}
44... Bd7 {[%clk 0:00:02]} 45. Bg7 {[%clk 0:00:27.8]} 45... Be8 {[%clk
0:00:02.2]} 46. Bxf6+ {[%clk 0:00:28.7]} 46... Kd7 {[%clk 0:00:02.3]} 47. Bxe8+
{[%clk 0:00:27.3]} 47... Kxe8 {[%clk 0:00:03.2]} 48. Nxd6+ {[%clk 0:00:27.9]}
48... Kf8 {[%clk 0:00:02.9]} 49. Ne4 {[%clk 0:00:28.8]} 49... Kf7 {[%clk
0:00:02.9]} 50. Bxe5 {[%clk 0:00:29]} 50... Bb4 {[%clk 0:00:02.6]} 51. Bd6
{[%clk 0:00:29.9]} 51... Kg7 {[%clk 0:00:02.5]} 52. Bxc5 {[%clk 0:00:30.8]}
52... Bxc5 {[%clk 0:00:02.6]} 53. Nxc5 {[%clk 0:00:30.7]} 53... Kf6 {[%clk
0:00:03.5]} 54. Ne4+ {[%clk 0:00:30.9]} 54... Kxf5 {[%clk 0:00:04.4]} 55. Kf3
{[%clk 0:00:30.2]} 55... Ke5 {[%clk 0:00:04.5]} 56. Ke3 {[%clk 0:00:31.1]} 56...
Kf5 {[%clk 0:00:04.2]} 57. Kd4 {[%clk 0:00:32]} 57... Kg6 {[%clk 0:00:04.3]} 58.
Kc5 {[%clk 0:00:32.9]} 58... Kf7 {[%clk 0:00:05.2]} 59. Kc6 {[%clk 0:00:33.5]}
59... Ke8 {[%clk 0:00:05.6]} 60. Kc7 {[%clk 0:00:34]} 60... Ke7 {[%clk 0:00:06]}
61. d6+ {[%clk 0:00:34.9]} 61... Ke6 {[%clk 0:00:06.1]} 62. d7 {[%clk
0:00:35.8]} 62... Ke5 {[%clk 0:00:07]} 63. d8=Q {[%clk 0:00:36.3]} 63... Kf4
{[%clk 0:00:07.9]} 64. d4 {[%clk 0:00:36.5]} 64... Ke3 {[%clk 0:00:08.8]} 65. d5
{[%clk 0:00:37.3]} 65... Kd3 {[%clk 0:00:08.3]} 66. d6 {[%clk 0:00:37.9]} 66...
Ke3 {[%clk 0:00:09.2]} 67. Nc5 {[%clk 0:00:37.9]} 67... Kd4 {[%clk 0:00:09.2]}
68. d7 {[%clk 0:00:38.2]} 68... Kc3 {[%clk 0:00:07.8]} 69. Ne6 {[%clk
0:00:37.5]} 69... Kb4 {[%clk 0:00:08.7]} 70. Kd6 {[%clk 0:00:37.6]} 70... Kc3
{[%clk 0:00:09.1]} 71. c5 {[%clk 0:00:38.5]} 71... Kc4 {[%clk 0:00:09.3]} 72. c6
{[%clk 0:00:39]} 72... Kd3 {[%clk 0:00:10.2]} 73. Qa5 {[%clk 0:00:38.9]} 73...
Ke4 {[%clk 0:00:11.1]} 74. Qd5+ {[%clk 0:00:38.2]} 74... Ke3 {[%clk 0:00:11.1]}
75. Qc4 {[%clk 0:00:38.6]} 75... Kf3 {[%clk 0:00:12]} 76. Qd4 {[%clk 0:00:39]}
76... Kg3 {[%clk 0:00:12.2]} 77. Qe4 {[%clk 0:00:39.5]} 77... Kf2 {[%clk
0:00:12.1]} 78. Qd3 {[%clk 0:00:39.7]} 78... Kg2 {[%clk 0:00:12.2]} 79. Qe3
{[%clk 0:00:40.2]} 79... Kf1 {[%clk 0:00:12.2]} 80. Qd2 {[%clk 0:00:40.2]} 80...
Kg1 {[%clk 0:00:12.7]} 81. c7 {[%clk 0:00:41]} 81... Kh1 {[%clk 0:00:12.4]} 82.
c8=Q {[%clk 0:00:41.9]} 82... Kg1 {[%clk 0:00:13.3]} 83. Qcc1# {[%clk
0:00:42.8]} 1-0